[Event "*** Titled Tuesday Blitz"]
[Site "Chess.com"]
[Date "2019.06.04"]
[Round "6"]
[White "H3nriqueTV"]
[Black "mjray79"]
[Result "1-0"]
[WhiteElo "2175"]
[BlackElo "2094"]
[TimeControl "180+2"]
[EndTime "14:15:54 PDT"]
[Termination "H3nriqueTV won by resignation"]

1. e4 {[%clk 0:03:01.9]} 1... e5 {[%clk 0:02:58.5]} 2. Nf3 {[%clk 0:03:02.4]}
2... Nc6 {[%clk 0:02:59.5]} 3. Bc4 {[%clk 0:03:02.2]} 3... Bc5 {[%clk
0:02:59.5]} 4. O-O {[%clk 0:02:59.4]} 4... Nf6 {[%clk 0:02:59.7]} 5. d3 {[%clk
0:02:58.8]} 5... O-O {[%clk 0:03:00.1]} 6. c3 {[%clk 0:02:58.1]} 6... d5 {[%clk
0:02:59.6]} 7. Bb3 {[%clk 0:02:57.1]} 7... dxe4 {[%clk 0:02:55.6]} 8. dxe4
{[%clk 0:02:57.1]} 8... Qxd1 {[%clk 0:02:48.6]} 9. Rxd1 {[%clk 0:02:57.1]} 9...
Nxe4 {[%clk 0:02:50]} 10. Rf1 {[%clk 0:02:58.4]} 10... Nf6 {[%clk 0:02:47.4]}
11. Nbd2 {[%clk 0:02:59.2]} 11... Bg4 {[%clk 0:02:44.9]} 12. h3 {[%clk
0:02:59.1]} 12... Bh5 {[%clk 0:02:42.5]} 13. Ng5 {[%clk 0:02:59.9]} 13... Bg6
{[%clk 0:02:38.9]} 14. Re1 {[%clk 0:02:59.4]} 14... h6 {[%clk 0:02:22.4]} 15.
Ngf3 {[%clk 0:02:53.7]} 15... e4 {[%clk 0:02:22.2]} 16. Nh2 {[%clk 0:02:54.1]}
16... Rfe8 {[%clk 0:02:19.1]} 17. Ndf1 {[%clk 0:02:54.8]} 17... Rad8 {[%clk
0:02:16.7]} 18. Bf4 {[%clk 0:02:54.2]} 18... Bb6 {[%clk 0:02:09.5]} 19. Ng3
{[%clk 0:02:52]} 19... Nh5 {[%clk 0:02:00.1]} 20. Nxh5 {[%clk 0:02:50.8]} 20...
Bxh5 {[%clk 0:02:00.9]} 21. Nf1 {[%clk 0:02:49.1]} 21... g5 {[%clk 0:01:59.5]}
22. Bh2 {[%clk 0:02:46.1]} 22... Bg6 {[%clk 0:01:59.2]} 23. Ng3 {[%clk 0:02:44]}
23... e3 {[%clk 0:01:59.2]} 24. fxe3 {[%clk 0:02:43.9]} 24... Rxe3 {[%clk
0:01:59.1]} 25. Kh1 {[%clk 0:02:42.3]} 25... Rd2 {[%clk 0:01:55.2]} 26. Rxe3
{[%clk 0:02:39.4]} 26... Bxe3 {[%clk 0:01:53.7]} 27. Nf1 {[%clk 0:02:40.6]}
27... Rxb2 {[%clk 0:01:34.6]} 28. Nxe3 {[%clk 0:02:41.1]} 28... Kg7 {[%clk
0:01:35]} 29. Bxc7 {[%clk 0:02:40.1]} 29... f5 {[%clk 0:01:35.9]} 30. Rd1 {[%clk
0:02:39.2]} 30... f4 {[%clk 0:01:34.3]} 31. Ng4 {[%clk 0:02:37]} 31... h5 {[%clk
0:01:33.1]} 32. Rd7+ {[%clk 0:02:37.3]} 32... Kf8 {[%clk 0:01:33.3]} 33. Nf6
{[%clk 0:02:36.9]} 33... Ne7 {[%clk 0:01:15.2]} 34. Bd6 {[%clk 0:02:37.6]} 34...
Re2 {[%clk 0:01:14.1]} 35. Nd5 {[%clk 0:02:36.4]} 35... Be4 {[%clk 0:01:11.2]}
36. Bxe7+ {[%clk 0:02:33.1]} 36... Kg7 {[%clk 0:01:07.6]} 37. Bxg5+ {[%clk
0:02:33]} 37... Kg6 {[%clk 0:01:08.1]} 38. Nxf4+ {[%clk 0:02:34.1]} 1-0

[Event "*** Titled Tuesday Blitz"]
[Site "Chess.com"]
[Date "2019.06.04"]
[Round "6"]
[White "csati17"]
[Black "Swarnapuri"]
[Result "0-1"]
[WhiteElo "2509"]
[BlackElo "2701"]
[TimeControl "180+2"]
[EndTime "14:15:56 PDT"]
[Termination "Swarnapuri won by resignation"]

1. c4 {[%clk 0:03:01.9]} 1... Nc6 {[%clk 0:03:01.9]} 2. Nc3 {[%clk 0:03:02.8]}
2... e5 {[%clk 0:03:01.7]} 3. g3 {[%clk 0:03:03.3]} 3... Nf6 {[%clk 0:03:02.2]}
4. Bg2 {[%clk 0:03:04.2]} 4... Bb4 {[%clk 0:03:03.9]} 5. Nd5 {[%clk 0:03:05.1]}
5... O-O {[%clk 0:03:04.9]} 6. Nxb4 {[%clk 0:02:55.5]} 6... Nxb4 {[%clk
0:03:06.8]} 7. Nf3 {[%clk 0:02:57.4]} 7... e4 {[%clk 0:02:50.5]} 8. Nd4 {[%clk
0:02:54.3]} 8... c5 {[%clk 0:02:46.5]} 9. Nb5 {[%clk 0:02:34.6]} 9... d5 {[%clk
0:02:46.1]} 10. cxd5 {[%clk 0:02:34.4]} 10... Nbxd5 {[%clk 0:02:45.2]} 11. O-O
{[%clk 0:02:20.3]} 11... Bf5 {[%clk 0:02:45.1]} 12. b3 {[%clk 0:02:06.9]} 12...
Qd7 {[%clk 0:02:43.5]} 13. Na3 {[%clk 0:02:03.9]} 13... Bh3 {[%clk 0:02:39.8]}
14. Bb2 {[%clk 0:02:01.9]} 14... Rad8 {[%clk 0:02:36.4]} 15. Qc2 {[%clk
0:01:25.6]} 15... b6 {[%clk 0:02:34.2]} 16. Rfd1 {[%clk 0:01:26.6]} 16... Bxg2
{[%clk 0:02:29]} 17. Kxg2 {[%clk 0:01:28.5]} 17... Qg4 {[%clk 0:02:30.7]} 18.
Bxf6 {[%clk 0:01:03.9]} 18... Nf4+ {[%clk 0:02:17.3]} 19. Kh1 {[%clk 0:01:02.2]}
19... Nxe2 {[%clk 0:02:18.3]} 20. Kg2 {[%clk 0:00:36.5]} 20... gxf6 {[%clk
0:02:14.6]} 21. Nc4 {[%clk 0:00:26.6]} 21... Qf3+ {[%clk 0:02:15.6]} 22. Kf1
{[%clk 0:00:27.1]} 22... Nd4 {[%clk 0:02:17]} 0-1

[Event "*** Titled Tuesday Blitz"]
[Site "Chess.com"]
[Date "2019.06.04"]
[Round "6"]
[White "Slovak_fighter2000"]
[Black "olksuna"]
[Result "1/2-1/2"]
[WhiteElo "2493"]
[BlackElo "2480"]
[TimeControl "180+2"]
[EndTime "14:15:58 PDT"]
[Termination "Game drawn by repetition"]

1. d4 {[%clk 0:03:01.8]} 1... d5 {[%clk 0:03:00.2]} 2. Nf3 {[%clk 0:03:02.5]}
2... Nf6 {[%clk 0:02:58.1]} 3. Bf4 {[%clk 0:03:03.4]} 3... g6 {[%clk 0:02:57]}
4. e3 {[%clk 0:03:04.5]} 4... Bg7 {[%clk 0:02:58.3]} 5. Be2 {[%clk 0:03:04.8]}
5... O-O {[%clk 0:02:58.8]} 6. O-O {[%clk 0:03:05.9]} 6... Bg4 {[%clk
0:02:59.2]} 7. h3 {[%clk 0:03:04.8]} 7... Bxf3 {[%clk 0:02:59.4]} 8. Bxf3 {[%clk
0:03:06.7]} 8... c6 {[%clk 0:03:00.8]} 9. Nd2 {[%clk 0:03:05.3]} 9... Nbd7
{[%clk 0:03:00.9]} 10. c3 {[%clk 0:03:03.7]} 10... Re8 {[%clk 0:03:00.7]} 11. e4
{[%clk 0:03:04.4]} 11... dxe4 {[%clk 0:02:48.7]} 12. Nxe4 {[%clk 0:03:06.3]}
12... Nd5 {[%clk 0:02:50.1]} 13. Bg3 {[%clk 0:03:05.8]} 13... a5 {[%clk
0:02:49.8]} 14. a4 {[%clk 0:03:05.3]} 14... e5 {[%clk 0:02:45.7]} 15. Nd6 {[%clk
0:02:44.7]} 15... Re6 {[%clk 0:02:37.9]} 16. dxe5 {[%clk 0:02:37.3]} 16... Nxe5
{[%clk 0:02:38.6]} 17. Bxe5 {[%clk 0:02:34.4]} 17... Rxe5 {[%clk 0:02:36.2]} 18.
Nc4 {[%clk 0:02:28.8]} 18... Re7 {[%clk 0:02:25.8]} 19. Bxd5 {[%clk 0:02:19.7]}
19... cxd5 {[%clk 0:02:25.9]} 20. Ne3 {[%clk 0:02:19.9]} 20... d4 {[%clk
0:02:24.5]} 21. cxd4 {[%clk 0:02:19.9]} 21... Bxd4 {[%clk 0:02:23.8]} 22. Qb3
{[%clk 0:02:09.9]} 22... Bxe3 {[%clk 0:02:15.1]} 23. fxe3 {[%clk 0:02:11.8]}
23... Qd2 {[%clk 0:02:14.3]} 24. Rf3 {[%clk 0:02:08.8]} 24... Rd8 {[%clk
0:02:04.2]} 25. Raf1 {[%clk 0:02:07.2]} 25... Qd5 {[%clk 0:02:05.6]} 26. Qc3
{[%clk 0:01:49.5]} 26... Rdd7 {[%clk 0:01:59.7]} 27. Qc8+ {[%clk 0:01:42.3]}
27... Kg7 {[%clk 0:01:53.6]} 28. Qc3+ {[%clk 0:01:43]} 28... Kg8 {[%clk
0:01:54.7]} 29. Qc8+ {[%clk 0:01:43.2]} 29... Rd8 {[%clk 0:01:56]} 30. Qc3
{[%clk 0:01:43.7]} 30... Qd2 {[%clk 0:01:30.2]} 31. Qb3 {[%clk 0:01:40.9]} 31...
Qd5 {[%clk 0:01:27.8]} 32. Qc3 {[%clk 0:01:41]} 1/2-1/2

[Event "*** Titled Tuesday Blitz"]
[Site "Chess.com"]
[Date "2019.06.04"]
[Round "6"]
[White "PulpanJ"]
[Black "Pechen_Yeltsina"]
[Result "0-1"]
[WhiteElo "2641"]
[BlackElo "2697"]
[TimeControl "180+2"]
[EndTime "14:16:09 PDT"]
[Termination "Pechen_Yeltsina won by resignation"]

1. e4 {[%clk 0:03:01.9]} 1... g6 {[%clk 0:03:01.1]} 2. d4 {[%clk 0:03:02.2]}
2... Bg7 {[%clk 0:03:02.5]} 3. Nf3 {[%clk 0:02:59.2]} 3... d6 {[%clk 0:03:03.7]}
4. Nc3 {[%clk 0:02:58.4]} 4... a6 {[%clk 0:03:04.3]} 5. a4 {[%clk 0:02:59.1]}
5... b6 {[%clk 0:03:05.1]} 6. Be2 {[%clk 0:02:49.1]} 6... e6 {[%clk 0:03:05.5]}
7. O-O {[%clk 0:02:51]} 7... Bb7 {[%clk 0:03:06.9]} 8. Be3 {[%clk 0:02:48.2]}
8... Nd7 {[%clk 0:03:07.5]} 9. Nd2 {[%clk 0:02:38.8]} 9... Ne7 {[%clk
0:03:05.1]} 10. f3 {[%clk 0:02:38.2]} 10... O-O {[%clk 0:03:03.6]} 11. Qe1
{[%clk 0:02:39]} 11... f5 {[%clk 0:03:03.4]} 12. Qh4 {[%clk 0:02:39.3]} 12...
Nc6 {[%clk 0:03:03.4]} 13. Qxd8 {[%clk 0:02:20.7]} 13... Raxd8 {[%clk
0:03:05.3]} 14. Nb3 {[%clk 0:02:22.6]} 14... fxe4 {[%clk 0:02:58.5]} 15. fxe4
{[%clk 0:02:19.6]} 15... Nb4 {[%clk 0:02:56.1]} 16. Rxf8+ {[%clk 0:02:17.1]}
16... Rxf8 {[%clk 0:02:55.2]} 17. Rc1 {[%clk 0:02:19]} 17... c5 {[%clk
0:02:42.7]} 18. Bg4 {[%clk 0:02:03.7]} 18... Kf7 {[%clk 0:02:35.1]} 19. d5
{[%clk 0:01:55.5]} 19... exd5 {[%clk 0:02:34.6]} 20. Bxd7 {[%clk 0:01:08.9]}
20... d4 {[%clk 0:02:34.4]} 21. Bxd4 {[%clk 0:01:10.2]} 21... cxd4 {[%clk
0:02:30]} 22. Ne2 {[%clk 0:01:11.3]} 22... Ke7 {[%clk 0:02:22.5]} 23. Bh3 {[%clk
0:01:08]} 23... Bh6 {[%clk 0:02:21.9]} 24. Rd1 {[%clk 0:01:01.7]} 24... Bxe4
{[%clk 0:02:20.7]} 25. Nexd4 {[%clk 0:00:58.4]} 25... Be3+ {[%clk 0:02:16.4]}
26. Kh1 {[%clk 0:00:58.6]} 26... Nxc2 {[%clk 0:02:16.5]} 27. Nxc2 {[%clk
0:00:56.5]} 27... Bxc2 {[%clk 0:02:18.4]} 28. Re1 {[%clk 0:00:58.4]} 28... Kd8
{[%clk 0:02:17.1]} 29. g4 {[%clk 0:00:53.1]} 29... Bf2 {[%clk 0:02:15.9]} 0-1

[Event "*** Titled Tuesday Blitz"]
[Site "Chess.com"]
[Date "2019.06.04"]
[Round "6"]
[White "RitvarsReimanis"]
[Black "tbalabayev"]
[Result "1/2-1/2"]
[WhiteElo "2616"]
[BlackElo "2372"]
[TimeControl "180+2"]
[EndTime "14:16:09 PDT"]
[Termination "Game drawn by agreement"]

1. d4 {[%clk 0:03:01.9]} 1... Nf6 {[%clk 0:03:00.6]} 2. e3 {[%clk 0:03:02.1]}
2... d6 {[%clk 0:02:58.9]} 3. f4 {[%clk 0:03:04]} 3... Nbd7 {[%clk 0:02:59.3]}
4. Nf3 {[%clk 0:03:05.9]} 4... g6 {[%clk 0:03:00.7]} 5. Bc4 {[%clk 0:03:06.7]}
5... Bg7 {[%clk 0:03:02.6]} 6. O-O {[%clk 0:03:08]} 6... O-O {[%clk 0:03:03.5]}
7. Nbd2 {[%clk 0:03:09.6]} 7... b6 {[%clk 0:03:03.4]} 8. c3 {[%clk 0:03:10.9]}
8... Bb7 {[%clk 0:03:02.6]} 9. a4 {[%clk 0:03:12.5]} 9... a6 {[%clk 0:03:03]}
10. Qe2 {[%clk 0:03:13.3]} 10... c5 {[%clk 0:03:02]} 11. b4 {[%clk 0:03:14.3]}
11... cxb4 {[%clk 0:03:01.2]} 12. cxb4 {[%clk 0:03:16.2]} 12... a5 {[%clk
0:02:50.2]} 13. bxa5 {[%clk 0:03:14.6]} 13... bxa5 {[%clk 0:02:50.8]} 14. Bb5
{[%clk 0:03:13.3]} 14... Nb6 {[%clk 0:02:51.7]} 15. Ba3 {[%clk 0:03:11.9]} 15...
Ne4 {[%clk 0:02:50]} 16. Nxe4 {[%clk 0:03:12.7]} 16... Bxe4 {[%clk 0:02:51.9]}
17. Nd2 {[%clk 0:03:13.3]} 17... Bd5 {[%clk 0:02:49.5]} 18. Rac1 {[%clk
0:03:12.9]} 18... Rc8 {[%clk 0:02:42]} 19. Qd3 {[%clk 0:03:11.6]} 19... f5
{[%clk 0:02:39.5]} 20. Bb2 {[%clk 0:02:59.1]} 20... e6 {[%clk 0:02:34.6]} 21.
Bc3 {[%clk 0:02:57]} 21... Nd7 {[%clk 0:02:31.2]} 22. Bxa5 {[%clk 0:02:49.5]}
22... Qxa5 {[%clk 0:02:17.9]} 23. Bxd7 {[%clk 0:02:50.9]} 23... Rxc1 {[%clk
0:01:53.8]} 24. Rxc1 {[%clk 0:02:52.8]} 24... Rb8 {[%clk 0:01:54.4]} 25. Bb5
{[%clk 0:02:52.7]} 25... Qa8 {[%clk 0:01:47.8]} 26. Qe2 {[%clk 0:02:49.3]} 26...
e5 {[%clk 0:01:47]} 27. dxe5 {[%clk 0:02:29.4]} 27... dxe5 {[%clk 0:01:48.9]}
28. Rc5 {[%clk 0:02:23.9]} 28... Kh8 {[%clk 0:01:34.7]} 29. fxe5 {[%clk
0:02:03.6]} 29... Bxe5 {[%clk 0:01:26.7]} 30. Nf3 {[%clk 0:02:04.5]} 30... Bg7
{[%clk 0:01:21.8]} 31. Qd1 {[%clk 0:02:01.4]} 31... Rd8 {[%clk 0:01:19.5]} 32.
Qe2 {[%clk 0:02:00.1]} 32... Qa7 {[%clk 0:01:18.9]} 33. Qc2 {[%clk 0:01:49.7]}
1/2-1/2

[Event "*** Titled Tuesday Blitz"]
[Site "Chess.com"]
[Date "2019.06.04"]
[Round "6"]
[White "SanchezKelvin"]
[Black "orrbaverlekszarnyon"]
[Result "1-0"]
[WhiteElo "2450"]
[BlackElo "2232"]
[TimeControl "180+2"]
[EndTime "14:16:13 PDT"]
[Termination "SanchezKelvin won by resignation"]

1. d4 {[%clk 0:03:01.9]} 1... d5 {[%clk 0:03:00.8]} 2. c4 {[%clk 0:03:03.8]}
2... e6 {[%clk 0:03:02.1]} 3. Nf3 {[%clk 0:03:04.9]} 3... c5 {[%clk 0:03:03.5]}
4. cxd5 {[%clk 0:03:02]} 4... exd5 {[%clk 0:03:05.4]} 5. Nc3 {[%clk 0:03:03.3]}
5... Nc6 {[%clk 0:03:05.6]} 6. g3 {[%clk 0:03:04.3]} 6... Nf6 {[%clk 0:03:06.8]}
7. Bg2 {[%clk 0:03:05.1]} 7... Be7 {[%clk 0:03:08.3]} 8. O-O {[%clk 0:03:05.2]}
8... O-O {[%clk 0:03:09.6]} 9. Bg5 {[%clk 0:03:00.6]} 9... c4 {[%clk 0:03:10.4]}
10. Ne5 {[%clk 0:03:01]} 10... Be6 {[%clk 0:03:11.3]} 11. f4 {[%clk 0:03:01.9]}
11... h6 {[%clk 0:02:45.9]} 12. Bh4 {[%clk 0:02:39.3]} 12... Qb6 {[%clk
0:02:23.4]} 13. f5 {[%clk 0:02:30.9]} 13... Bc8 {[%clk 0:01:31.9]} 14. Bxf6
{[%clk 0:02:28.3]} 14... Bxf6 {[%clk 0:01:30.4]} 15. Nxd5 {[%clk 0:02:28.9]}
15... Qxd4+ {[%clk 0:01:25.7]} 16. Qxd4 {[%clk 0:02:29]} 16... Nxd4 {[%clk
0:01:26.1]} 17. Nxf6+ {[%clk 0:02:27.6]} 17... gxf6 {[%clk 0:01:28]} 18. Nxc4
{[%clk 0:02:28.4]} 18... Nxf5 {[%clk 0:01:20.2]} 19. e4 {[%clk 0:02:24.2]} 19...
Nd4 {[%clk 0:01:17.8]} 20. Rad1 {[%clk 0:02:22]} 20... Rd8 {[%clk 0:01:12.1]}
21. Ne3 {[%clk 0:02:14.8]} 21... Be6 {[%clk 0:01:05.6]} 22. Nd5 {[%clk
0:02:15.2]} 22... Bxd5 {[%clk 0:01:02.8]} 23. exd5 {[%clk 0:02:17.1]} 23... Nb5
{[%clk 0:00:50.1]} 24. Rxf6 {[%clk 0:02:16.2]} 24... Kg7 {[%clk 0:00:51.5]} 25.
Rdf1 {[%clk 0:02:06.2]} 25... Rd7 {[%clk 0:00:52.2]} 26. Bh3 {[%clk 0:02:06.6]}
26... Rxd5 {[%clk 0:00:38.8]} 27. Rxf7+ {[%clk 0:02:06]} 27... Kg8 {[%clk
0:00:37.1]} 28. Rxb7 {[%clk 0:02:05.7]} 28... Rf8 {[%clk 0:00:34.8]} 29. Be6+
{[%clk 0:02:06.1]} 1-0

[Event "*** Titled Tuesday Blitz"]
[Site "Chess.com"]
[Date "2019.06.04"]
[Round "6"]
[White "Muracle"]
[Black "severomorskij"]
[Result "0-1"]
[WhiteElo "2556"]
[BlackElo "2795"]
[TimeControl "180+2"]
[EndTime "14:16:28 PDT"]
[Termination "severomorskij won by resignation"]

1. Nf3 {[%clk 0:03:01.9]} 1... c5 {[%clk 0:03:00.4]} 2. g3 {[%clk 0:02:55.7]}
2... Nc6 {[%clk 0:03:00.5]} 3. d4 {[%clk 0:02:56.9]} 3... cxd4 {[%clk
0:03:01.1]} 4. Nxd4 {[%clk 0:02:57.5]} 4... g6 {[%clk 0:02:56.9]} 5. Bg2 {[%clk
0:02:57.6]} 5... Bg7 {[%clk 0:02:58.1]} 6. Nb3 {[%clk 0:02:59.2]} 6... Nf6
{[%clk 0:02:58.4]} 7. O-O {[%clk 0:03:00.6]} 7... O-O {[%clk 0:02:59.4]} 8. c4
{[%clk 0:03:02.2]} 8... d6 {[%clk 0:02:59]} 9. Nc3 {[%clk 0:03:03.6]} 9... Be6
{[%clk 0:02:59.9]} 10. c5 {[%clk 0:03:03.3]} 10... d5 {[%clk 0:02:52.6]} 11. Bf4
{[%clk 0:03:03.6]} 11... Qd7 {[%clk 0:02:48.2]} 12. Re1 {[%clk 0:03:03.2]} 12...
Rad8 {[%clk 0:02:45.1]} 13. Nb5 {[%clk 0:03:02.2]} 13... Bh3 {[%clk 0:02:42.2]}
14. Bh1 {[%clk 0:03:01.8]} 14... a6 {[%clk 0:02:32.7]} 15. N5d4 {[%clk
0:02:55.2]} 15... Nh5 {[%clk 0:02:20.8]} 16. Bg5 {[%clk 0:02:29.7]} 16... h6
{[%clk 0:02:19.8]} 17. Nxc6 {[%clk 0:02:25.4]} 17... bxc6 {[%clk 0:02:19.8]} 18.
Bd2 {[%clk 0:02:24.7]} 18... e5 {[%clk 0:02:11.9]} 19. Rc1 {[%clk 0:02:11.6]}
19... f5 {[%clk 0:02:06.9]} 20. Na5 {[%clk 0:02:03.6]} 20... e4 {[%clk
0:01:55.8]} 21. b4 {[%clk 0:02:02.9]} 21... f4 {[%clk 0:01:54.6]} 22. Bc3 {[%clk
0:01:29.7]} 22... fxg3 {[%clk 0:01:36.1]} 23. hxg3 {[%clk 0:01:26.3]} 23... e3
{[%clk 0:01:07.6]} 24. fxe3 {[%clk 0:01:15.2]} 24... Qg4 {[%clk 0:01:00.6]} 0-1

[Event "*** Titled Tuesday Blitz"]
[Site "Chess.com"]
[Date "2019.06.04"]
[Round "6"]
[White "Michael_Scofield01"]
[Black "Sanan_Sjugirov"]
[Result "1-0"]
[WhiteElo "2748"]
[BlackElo "2843"]
[TimeControl "180+2"]
[EndTime "14:16:39 PDT"]
[Termination "Michael_Scofield01 won by resignation"]

1. e4 {[%clk 0:03:01.9]} 1... c5 {[%clk 0:03:00.3]} 2. Nf3 {[%clk 0:03:02.4]}
2... d6 {[%clk 0:03:01.7]} 3. d4 {[%clk 0:03:03.1]} 3... cxd4 {[%clk 0:03:03.6]}
4. Nxd4 {[%clk 0:03:04.5]} 4... Nf6 {[%clk 0:03:05.2]} 5. Nc3 {[%clk 0:03:04]}
5... a6 {[%clk 0:03:06.5]} 6. Bc4 {[%clk 0:03:04.3]} 6... e6 {[%clk 0:03:07.1]}
7. Bb3 {[%clk 0:03:05.1]} 7... b5 {[%clk 0:02:58.5]} 8. O-O {[%clk 0:03:04.5]}
8... Be7 {[%clk 0:02:55]} 9. Qf3 {[%clk 0:03:03.9]} 9... Qb6 {[%clk 0:02:46.3]}
10. Be3 {[%clk 0:03:03.8]} 10... Qb7 {[%clk 0:02:46.2]} 11. Qg3 {[%clk
0:03:04.3]} 11... O-O {[%clk 0:02:44]} 12. Bh6 {[%clk 0:03:04.5]} 12... Ne8
{[%clk 0:02:40.4]} 13. Rfe1 {[%clk 0:03:04.3]} 13... b4 {[%clk 0:02:22.9]} 14.
Nd5 {[%clk 0:02:22.4]} 14... exd5 {[%clk 0:02:21.1]} 15. Bxd5 {[%clk 0:02:22.6]}
15... Qa7 {[%clk 0:02:20.8]} 16. Be3 {[%clk 0:02:23.1]} 16... Nc7 {[%clk
0:01:02.3]} 17. Nf3 {[%clk 0:01:23.6]} 17... Nxd5 {[%clk 0:00:57]} 18. Bxa7
{[%clk 0:01:22.2]} 18... Rxa7 {[%clk 0:00:47.8]} 19. exd5 {[%clk 0:01:22.8]}
19... Rd8 {[%clk 0:00:43.8]} 20. Re3 {[%clk 0:01:21.1]} 20... Bf8 {[%clk
0:00:40.9]} 21. Rae1 {[%clk 0:01:21]} 21... Nd7 {[%clk 0:00:42.1]} 22. Nd4
{[%clk 0:01:20.2]} 22... Ne5 {[%clk 0:00:41.3]} 23. Rxe5 {[%clk 0:01:16.1]}
23... dxe5 {[%clk 0:00:42.6]} 24. Nc6 {[%clk 0:01:16.4]} 1-0

[Event "*** Titled Tuesday Blitz"]
[Site "Chess.com"]
[Date "2019.06.04"]
[Round "6"]
[White "albi1999"]
[Black "Denis_Palkovich"]
[Result "1-0"]
[WhiteElo "2449"]
[BlackElo "2219"]
[TimeControl "180+2"]
[EndTime "14:16:51 PDT"]
[Termination "albi1999 won by resignation"]

1. d4 {[%clk 0:02:40.6]} 1... d5 {[%clk 0:02:59.4]} 2. c4 {[%clk 0:02:36.7]}
2... Bf5 {[%clk 0:02:59.7]} 3. cxd5 {[%clk 0:02:37.1]} 3... Bxb1 {[%clk
0:02:55.7]} 4. Qa4+ {[%clk 0:02:38.6]} 4... Qd7 {[%clk 0:02:55.8]} 5. Qxd7+
{[%clk 0:02:38.9]} 5... Nxd7 {[%clk 0:02:56.1]} 6. Rxb1 {[%clk 0:02:40.8]} 6...
Ngf6 {[%clk 0:02:54.8]} 7. f3 {[%clk 0:02:42.1]} 7... Nxd5 {[%clk 0:02:53.7]} 8.
e4 {[%clk 0:02:43.6]} 8... N5b6 {[%clk 0:02:54.4]} 9. Be3 {[%clk 0:02:41.1]}
9... g6 {[%clk 0:02:23]} 10. Rc1 {[%clk 0:02:38.1]} 10... c6 {[%clk 0:02:21.5]}
11. Ne2 {[%clk 0:02:38.8]} 11... Bg7 {[%clk 0:02:20.1]} 12. Kf2 {[%clk
0:02:37.2]} 12... O-O {[%clk 0:02:20.2]} 13. Nc3 {[%clk 0:02:38.1]} 13... Rad8
{[%clk 0:02:21.2]} 14. Be2 {[%clk 0:02:37.4]} 14... e6 {[%clk 0:01:53.8]} 15.
Rhd1 {[%clk 0:02:36.3]} 15... f5 {[%clk 0:01:52.8]} 16. Kg1 {[%clk 0:02:32.7]}
16... e5 {[%clk 0:00:41]} 17. d5 {[%clk 0:02:30.7]} 17... cxd5 {[%clk
0:00:40.6]} 18. exd5 {[%clk 0:02:26.7]} 18... Nf6 {[%clk 0:00:31]} 19. Bc5
{[%clk 0:02:17.3]} 19... Rf7 {[%clk 0:00:27.7]} 20. d6 {[%clk 0:02:17]} 20...
Nfd7 {[%clk 0:00:27.5]} 21. Ba3 {[%clk 0:02:12.6]} 21... Kh8 {[%clk 0:00:24.6]}
22. Nb5 {[%clk 0:02:09.3]} 22... a6 {[%clk 0:00:24.7]} 23. Nc7 {[%clk
0:02:10.8]} 23... h6 {[%clk 0:00:10.6]} 24. Ne6 {[%clk 0:02:11.3]} 24... Re8
{[%clk 0:00:11.4]} 25. Nxg7 {[%clk 0:02:12.3]} 25... Kxg7 {[%clk 0:00:12.5]} 26.
Rc7 {[%clk 0:02:13.3]} 26... Kf6 {[%clk 0:00:13.1]} 27. Rxb7 {[%clk 0:02:13.6]}
27... Ke6 {[%clk 0:00:04.2]} 28. Bxa6 {[%clk 0:02:10.4]} 28... Nc8 {[%clk
0:00:02.8]} 29. Bc4+ {[%clk 0:02:10.8]} 29... Kf6 {[%clk 0:00:04.4]} 30. Bxf7
{[%clk 0:02:11.3]} 30... Kxf7 {[%clk 0:00:06.3]} 31. Rxd7+ {[%clk 0:02:11.1]}
1-0

[Event "*** Titled Tuesday Blitz"]
[Site "Chess.com"]
[Date "2019.06.04"]
[Round "6"]
[White "Anaiy"]
[Black "aa175"]
[Result "0-1"]
[WhiteElo "1973"]
[BlackElo "2011"]
[TimeControl "180+2"]
[EndTime "14:16:56 PDT"]
[Termination "aa175 won by checkmate"]

1. d4 {[%clk 0:03:01.2]} 1... Nf6 {[%clk 0:02:59.4]} 2. c4 {[%clk 0:03:02.3]}
2... g6 {[%clk 0:02:48.7]} 3. Nc3 {[%clk 0:03:03.2]} 3... d5 {[%clk 0:02:48]} 4.
cxd5 {[%clk 0:03:04]} 4... Nxd5 {[%clk 0:02:48.5]} 5. e4 {[%clk 0:03:05.6]} 5...
Nxc3 {[%clk 0:02:47.1]} 6. bxc3 {[%clk 0:03:07.5]} 6... Bg7 {[%clk 0:02:48.1]}
7. Be3 {[%clk 0:03:08.6]} 7... O-O {[%clk 0:02:50]} 8. Qd2 {[%clk 0:03:09.1]}
8... c5 {[%clk 0:02:51.9]} 9. Rc1 {[%clk 0:03:07.2]} 9... cxd4 {[%clk
0:02:53.8]} 10. cxd4 {[%clk 0:03:07.5]} 10... Nc6 {[%clk 0:02:51.3]} 11. Nf3
{[%clk 0:02:52.6]} 11... Bg4 {[%clk 0:02:47.2]} 12. d5 {[%clk 0:02:25]} 12...
Ne5 {[%clk 0:02:32.9]} 13. Nxe5 {[%clk 0:02:22.7]} 13... Bxe5 {[%clk 0:02:34.8]}
14. h3 {[%clk 0:02:15.7]} 14... Bd7 {[%clk 0:02:31]} 15. Be2 {[%clk 0:02:14.7]}
15... Rc8 {[%clk 0:02:25.7]} 16. O-O {[%clk 0:02:15.4]} 16... Rxc1 {[%clk
0:02:25.8]} 17. Rxc1 {[%clk 0:02:17.3]} 17... f5 {[%clk 0:02:26.5]} 18. f4
{[%clk 0:02:14.1]} 18... Bc7 {[%clk 0:01:58.5]} 19. e5 {[%clk 0:02:11.1]} 19...
Bb6 {[%clk 0:01:57.5]} 20. Kh2 {[%clk 0:01:59.8]} 20... e6 {[%clk 0:01:42.1]}
21. d6 {[%clk 0:01:55.2]} 21... Bc6 {[%clk 0:01:35.6]} 22. Bc4 {[%clk
0:01:36.4]} 22... Qd7 {[%clk 0:01:19.2]} 23. Bxb6 {[%clk 0:01:35]} 23... axb6
{[%clk 0:01:18.9]} 24. Qb4 {[%clk 0:01:23.4]} 24... b5 {[%clk 0:01:06.2]} 25.
Be2 {[%clk 0:01:23]} 25... Ra8 {[%clk 0:00:50.2]} 26. Rb1 {[%clk 0:01:11.2]}
26... Rxa2 {[%clk 0:00:48.8]} 27. Bxb5 {[%clk 0:01:08.6]} 27... Rxg2+ {[%clk
0:00:48.2]} 28. Kh1 {[%clk 0:01:05.1]} 28... Rb2+ {[%clk 0:00:48.2]} 29. Bxc6
{[%clk 0:01:01.8]} 29... Qxc6+ {[%clk 0:00:50.1]} 30. Kg1 {[%clk 0:01:02.6]}
30... Qg2# {[%clk 0:00:52]} 0-1